Cogmind - Beta 15 @@@ ROGUE MODE // 2025.05.30 @ 20:04:51 Player: LightKnight Result: Destroyed by S-10 Pest with Light Assault Rifle Performance ------------- Evolutions (0) 0 Regions Visited (4) 800 Robots Destroyed (26) 130 Value Destroyed (528) 528 Prototype IDs (27) 540 Alien Tech Used (0) 0 Bonus (300) 300 TOTAL SCORE: 2298 Bonus ------- Aligned with FarCom 300 Cogmind --------- Core Integrity 0/250 Matter 237/300 Energy 250/250 System Corruption 5% Temperature Cool (0) Movement Walking (90) Location -9/Mines Parts ------- > --- POWER (1) -------- Ion Engine > --- PROPULSION (2) --- Light Treads Potential Leg > --- UTILITY (2) ------ Large Storage Unit Improved Weapon Shielding > --- WEAPON (2) ------- Assault Rifle Light Assault Rifle > --- INVENTORY (15) --- Light Ion Engine Reinforced Deuterium Engine Fission Core Potential Leg High-capacity Storage Unit High-capacity Matter Pod (179) Seismic Detector Light Assault Rifle Light Assault Rifle Grenade Launcher Missile Launcher Makeshift Axe Peak State ------------ > --- POWER ------------ Ion Engine > --- PROPULSION ------- Light Treads Potential Leg > --- UTILITY ---------- Large Storage Unit Improved Weapon Shielding > --- WEAPON ----------- Assault Rifle Light Assault Rifle > --- INVENTORY -------- Light Ion Engine Reinforced Deuterium Engine Fission Core Potential Leg High-capacity Storage Unit High-capacity Matter Pod Seismic Detector Light Assault Rifle Light Assault Rifle Grenade Launcher Missile Launcher Makeshift Axe [Rating: 21] Favorites ----------- Power Ion Engine Engine Ion Engine Propulsion Light Treads Treads Light Treads Leg Aluminum Leg Utility Improved Heat Sink Device Improved Heat Sink Storage Large Storage Unit Protection Improved Weapon Shielding Weapon Assault Rifle Ballistic Gun Assault Rifle Launcher Grenade Launcher Build | -11 -10 -10 -10 -9 ------- Run | Yrd Mat Min Exi Min Slots Evolved . | . . . . . Power . | . . . . . Propulsion . | . . . . . Utility . | . . . . . Weapon . | . . . . . Parts Attached 19 | 1 10 7 . 1 Power 4 | . 3 1 . . Engine 4 | . 3 1 . . Core . | . . . . . Reactor . | . . . . . Propulsion 4 | . 2 1 . 1 Treads 3 | . 2 1 . . Leg 1 | . . . . 1 Wheel . | . . . . . Hover . | . . . . . Flight . | . . . . . Utility 5 | . 4 1 . . Device 1 | . 1 . . . Storage 3 | . 3 . . . Processor . | . . . . . Hackware . | . . . . . Protection 1 | . . 1 . . Artifact . | . . . . . Weapon 6 | 1 1 4 . . Energy Gun . | . . . . . Energy Cannon . | . . . . . Ballistic Gun 4 | 1 1 2 . . Ballistic Cannon . | . . . . . Launcher 2 | . . 2 . . Special Weapon . | . . . . . Impact Weapon . | . . . . . Slashing Weapon . | . . . . . Piercing Weapon . | . . . . . Special Melee Weapon . | . . . . . Unidentified Prototypes . | . . . . . Parts Lost 4 | . . 3 . 1 Power 1 | . . 1 . . Propulsion 2 | . . 1 . 1 Utility 1 | . . 1 . . Weapon . | . . . . . Highest Loss Streak 3 | . . 3 . 1 To Critical Strikes . | . . . . . Average Backups 11 | 6 10 12 14 13 Power 2 | 1 2 1 2 3 Propulsion 2 | 4 3 . . 1 Utility 2 | . 1 3 3 3 Weapon 5 | 1 3 7 7 5 Tool/Special . | . . . . . Unused Backups 18 | . 8 . 1 9 Power 4 | . 1 . . 3 Propulsion 5 | . 4 . . 1 Utility 4 | . 2 . . 2 Weapon 5 | . 1 . 1 3 Tool/Special . | . . . . . Average Slot Usage (%) 95 | . 98 99 71 95 Engine 13 | . 14 13 14 14 Treads 26 | . 26 28 28 23 Device 9 | . 12 8 . . Storage 14 | . 14 14 14 14 Protection 3 | . . 5 14 14 Ballistic Gun 24 | . 28 27 . 23 Peak Build Rating 21 | 6 10 10 11 21 Average Rating 9 | 6 9 9 9 16 On Entrance 8 | 6 6 10 10 11 Naked Turns . | . . . . . Heaviest Build 50 | 13 50 31 27 . Greatest Support 40 | 20 40 40 40 . Greatest Overweight (x) 1 | . 1 . . . Average Overweight (x) . | . . . . . Largest Inventory Capacity 25 | 8 25 15 15 15 Average Capacity 16 | 8 16 15 15 15 Most Carried 15 | 6 14 13 15 14 Average Carried 11 | 6 10 12 14 12 Final Capacity 15 | 8 15 15 15 15 Final Carried 15 | 6 12 12 15 12 Class Distribution -------------------- 100% | Mutant Dominant Class ---------------- Mutant | -10/Materials Mutant | -10/Mines Mutant | -10/Exiles Mutant | -9/Mines Resources | -11 -10 -10 -10 -9 ----------- Run | Yrd Mat Min Exi Min Matter Collected 833 | 200 393 219 21 . Remotely . | . . . . . Salvage Created 768 | . 561 180 . 27 Parts 58 | . 38 15 . 5 Haulers Intercepted 2 | . 2 . . . Recyclers Shooed 3 | . 3 . . . Parts Field Recycled . | . . . . . Retrieved Matter . | . . . . . Parts Self-Destructed . | . . . . . Prevented . | . . . . . Kills | -11 -10 -10 -10 -9 ------- Run | Yrd Mat Min Exi Min Combat Hostiles Destroyed 32 | . 11 19 . 2 Guns 22 | . 11 9 . 2 AOE 10 | . . 10 . . Classes Destroyed 6 | . 4 2 . . Worker 1 | . . 1 . . Hauler 2 | . 2 . . . Watcher 3 | . 3 . . . Swarmer 11 | . 3 6 . 2 Grunt 9 | . 8 1 . . Assembled 12 | . . 12 . . Best Kill Streak 12 | . 4 12 . 2 Combat Bots Only 12 | . 4 12 . 2 Max Kills in Single Turn 5 | . 1 5 . 1 Gunslinging . | . . . . . Exploded 5 | . . 5 . . Melee . | . . . . . Uniques/NPCs Destroyed . | . . . . . Combat | -11 -10 -10 -10 -9 -------- Run | Yrd Mat Min Exi Min Hostile Shots Fired 110 | . 44 38 . 28 Missed 17 | . 7 8 . 2 Hits 93 | . 37 30 . 26 Melee 6 | . . 6 . . Projectile 87 | . 37 24 . 26 Critical Strikes 3 | . 1 2 . . Damage Taken 1205 | . 470 509 . 226 Core 251 | . 78 140 . 33 Absorbed by Shields . | . . . . . Redirected to Shielding 46 | . . . . 46 Regen/Repaired (Parts) 94 | . 94 . . . Core Remaining (%) 100 | 100 . . . . Volleys Fired 83 | . 52 23 . 8 Largest 2 | . 2 2 . 2 Hottest 40 | . 40 40 . 40 Shots Fired 163 | . 104 43 . 16 Gun 159 | . 104 39 . 16 Cannon . | . . . . . Launcher 4 | . . 4 . . Special . | . . . . . Kinetic 159 | . 104 39 . 16 Thermal . | . . . . . Explosive 4 | . . 4 . . Electromagnetic . | . . . . . Robot Hit Streak 8 | . 8 6 . 2 Robot Miss Streak 5 | . 5 3 . 3 Penetration Max . | . . . . . Secondary Targets 4 | . 1 1 . 2 Max Gunslinging Chain 1 | . 1 1 . 1 Shots Hit Robots 102 | . 71 25 . 6 Core Hits 63 | . 33 27 . 3 Critical Kills 1 | . 1 . . . Critical Parts Destroyed . | . . . . . Critical Strikes 1 | . 1 . . . Destroy 1 | . 1 . . . Melee Attacks . | . . . . . Impact . | . . . . . Slashing . | . . . . . Piercing . | . . . . . Sneak Attacks . | . . . . . Combat Hostiles . | . . . . . Follow-up Attacks . | . . . . . Damage Inflicted 1609 | . 878 658 . 73 Guns 1190 | . 859 258 . 73 Cannons . | . . . . . Explosions 400 | . . 400 . . Melee . | . . . . . Ramming 19 | . 19 . . . Kinetic 1190 | . 859 258 . 73 Thermal . | . . . . . Explosive 400 | . . 400 . . Electromagnetic . | . . . . . Impact . | . . . . . Slashing . | . . . . . Piercing . | . . . . . Highest Corruption 5 | . . 5 5 5 Average Corruption 4 | . . 4 5 5 Corruption Purged . | . . . . . Corruption Blocked . | . . . . . Effects 23 | . . 12 10 1 Message Errors 4 | . . . 3 1 Matter Fused 5 | . . 2 3 . Heat Flow Errors 2 | . . . 2 . Energy Discharges 1 | . . 1 . . Parts Fused 1 | . . 1 . . Data Loss (minor) 9 | . . 7 2 . Misfires 1 | . . 1 . . Overload Shots . | . . . . . Overflow Damage 17 | . . 17 . . Projectiles . | . . . . . Explosions 17 | . . 17 . . Melee . | . . . . . Knockbacks . | . . . . . Impact . | . . . . . Kinetic . | . . . . . Secondary . | . . . . . Self-Inflicted Damage 38 | . . 38 . . Shots 1 | . . 1 . . Rammed 4 | . 4 . . . Targets Rammed 4 | . 4 . . . Kicked . | . . . . . Crushed . | . . . . . Highest Temperature 130 | . 27 18 130 . Average Temperature 25 | . 11 9 63 . Received Heat Transfer 392 | . 258 134 . . Siege Activations . | . . . . . Martial Activations . | . . . . . Shielding Activations . | . . . . . Robots Disrupted . | . . . . . Combat Hostiles . | . . . . . Robots Corrupted . | . . . . . Combat Hostiles . | . . . . . Parts Fried . | . . . . . Impact Corruptions . | . . . . . Robots Melted . | . . . . . Combat Hostiles . | . . . . . Parts Melted . | . . . . . Heat Transferred . | . . . . . Parts Sabotaged . | . . . . . Parts Stolen . | . . . . . Parts Stripped . | . . . . . Power Chain Reactions . | . . . . . Alert | -11 -10 -10 -10 -9 ------- Run | Yrd Mat Min Exi Min Maximum Alert Level . | . . . . . Low Security (%) 100 | 100 100 100 . 100 Level 1 . | . . . . . Level 2 . | . . . . . Level 3 . | . . . . . Level 4 . | . . . . . Level 5 . | . . . . . High Security . | . . . . . Max Security . | . . . . . Peak Influence 90 | . 90 88 . 45 Initial 19 | . . 19 . . Average 18 | . 17 19 . 32 Influence Increases 676 | . 378 233 . 65 Destroy 0b10 Robot/C 400 | . 220 140 . 40 Destroy 0b10 Robot/NC 30 | . 25 5 . . Destroy Leader 100 | . 60 30 . 10 Successful Hack 28 | . 28 . . . Select Force Hacks 30 | . 30 . . . Disable Machine 30 | . . 15 . 15 Destroy Structure 28 | . . 28 . . Lose Combat Pursuer 30 | . 15 15 . . Influence Decreases 631 | . 328 250 33 20 Entered New Map 64 | . . 31 33 . Time Decay 527 | . 328 189 . 10 Lost Part 40 | . . 30 . 10 Squads Dispatched 2 | . 2 . . . Investigation 1 | . 1 . . . Extermination . | . . . . . Reinforcement 1 | . 1 . . . Assault . | . . . . . Garrison . | . . . . . Intercept . | . . . . . Searches Triggered . | . . . . . Construction Impeded . | . . . . . Haulers Reinforced . | . . . . . Active Scanning Responses . | . . . . . Cargo Convoy Interrupts . | . . . . . Stealth | -11 -10 -10 -10 -9 --------- Run | Yrd Mat Min Exi Min Distress Signals 4 | . 4 . . . Communications Jammed . | . . . . . Distress Signals . | . . . . . Times Spotted 47 | . 21 23 . 3 Peak Tracking Total 10 | . 5 10 . 3 Tactical Retreats 4 | . 1 3 . . Traps | -11 -10 -10 -10 -9 ------- Run | Yrd Mat Min Exi Min Traps Triggered 2 | . . 2 . . Indirectly . | . . . . . Trap Hack Attempts . | . . . . . Triggered . | . . . . . Disarmed . | . . . . . Reprogrammed . | . . . . . Reused . | . . . . . Traps Extracted . | . . . . . Installed . | . . . . . Triggered . | . . . . . Machines | -11 -10 -10 -10 -9 ---------- Run | Yrd Mat Min Exi Min Machines Disabled 2 | . . 1 . 1 Max in Single Turn 1 | . . 1 . 1 Machines Repaired . | . . . . . Machines Dismantled . | . . . . . Machines Sabotaged . | . . . . . Overloaded Fab Kills . | . . . . . Hacking | -11 -10 -10 -10 -9 --------- Run | Yrd Mat Min Exi Min Machines Accessed 12 | . 10 1 1 . Terminals 7 | . 7 . . . Fabricators . | . . . . . Repair Stations 1 | . 1 . . . Recycling Units 2 | . 2 . . . Scanalyzers . | . . . . . Garrison Access . | . . . . . Total Hacks 31 | . 29 1 1 . Successful 19 | . 17 1 1 . Failed 11 | . 11 . . . Catastrophic . | . . . . . Database Lockouts 1 | . 1 . . . Manual 19 | . 18 . 1 . Terminals 22 | . 22 . . . Fabricators . | . . . . . Repair Stations 4 | . 4 . . . Recycling Units 3 | . 3 . . . Scanalyzers . | . . . . . Garrison Access . | . . . . . Terminal Hacks 10 | . 8 1 1 . Robot Analysis 2 | . 2 . . . Prototype ID Bank 2 | . 2 . . . Open Door 1 | . . 1 . . Locate Traps 1 | . 1 . . . Surveillance Status 1 | . 1 . . . Registered Components 1 | . 1 . . . Zone Layout 1 | . 1 . . . Proto ID Catalog 1 | . . . 1 . Fabricator Hacks . | . . . . . Repair Station Hacks 4 | . 4 . . . Scan Component 2 | . 2 . . . Repair 2 | . 2 . . . Recycling Unit Hacks . | . . . . . Scanalyzer . | . . . . . Garrison Access Hacks . | . . . . . Unauthorized Hacks 5 | . 5 . . . Terminals 4 | . 4 . . . Botnet 4 | . 4 . . . Fabricators . | . . . . . Repair Stations . | . . . . . Recycling Units 1 | . 1 . . . Tunnel 1 | . 1 . . . Scanalyzers . | . . . . . Garrison Access . | . . . . . Data Cores Recovered . | . . . . . Used . | . . . . . Hacking Detections 8 | . 8 . . . Full Trace Events . | . . . . . Feedback Events . | . . . . . Feedback Blocked . | . . . . . Robot Schematics Acquired . | . . . . . Robots Built . | . . . . . Authchips . | . . . . . Time . | . . . . . Total Robot Build Rating . | . . . . . Part Schematics Acquired . | . . . . . Parts Built . | . . . . . Authchips . | . . . . . Time . | . . . . . Total Part Build Rating . | . . . . . Parts Repaired 2 | . 2 . . . Time 52 | . 52 . . . Parts Recycled . | . . . . . Recycled Matter . | . . . . . Retrieved Matter . | . . . . . Retrieved Components . | . . . . . Parts Scanalyzed . | . . . . . Part Schematics Acquired . | . . . . . Parts Damaged . | . . . . . Bothacking | -11 -10 -10 -10 -9 ------------ Run | Yrd Mat Min Exi Min Used RIF Installer . | . . . . . Robots Hacked . | . . . . . Non-combat . | . . . . . Combat . | . . . . . Robot Hacks Applied . | . . . . . Relay Couplers Released . | . . . . . Fabnet Peak Effective % . | . . . . . Robots Rewired . | . . . . . Allies Hacked . | . . . . . Hacks Repelled . | . . . . . Allies | -11 -10 -10 -10 -9 -------- Run | Yrd Mat Min Exi Min Total Allies . | . . . . . Largest Group . | . . . . . Highest-Rated Group . | . . . . . Highest-Rated Ally . | . . . . . Total Orders . | . . . . . Ally Attacks . | . . . . . Total Damage . | . . . . . Kills . | . . . . . Allies Corrupted . | . . . . . Allies Melted . | . . . . . Intel | -11 -10 -10 -10 -9 ------- Run | Yrd Mat Min Exi Min Active Infowar (turns) . | . . . . . Robot Analysis Total 2 | . 2 . . . Derelict Logs Recovered 2 | . . 2 . . Drone Launches . | . . . . . Drone Recoveries . | . . . . . Exploration | -11 -10 -10 -10 -9 ------------- Run | Yrd Mat Min Exi Min Turns Passed 3294 | 2 1923 977 366 26 Spaces Moved 1581 | 1 796 559 225 . Core . | . . . . . Treads 1525 | . 741 559 225 . Legs 56 | 1 55 . . . Wheels . | . . . . . Hover . | . . . . . Flight . | . . . . . Fastest Speed 120 | 120 120 160 160 . Average Speed 184 | 120 208 160 160 . Slowest Speed 240 | 120 240 160 160 . Overloaded Moves . | . . . . . Propulsion Burnouts . | . . . . . Robots Hopped . | . . . . . Potential Cave-ins . | . . . . . Cave-ins Triggered . | . . . . . Exploration Rate (%) 50 | 1 99 88 63 3 Regions Visited 4 Branch Regions 3 Pre-discovered Areas 2 | . 1 1 . . Known Exits Taken . | . . . . . Unknown Exits Taken 4 | 1 1 1 1 . Scrap Searched 1 | . . 1 . . Spaces Dug . | . . . . . Terrain Destroyed 33 | . . 33 . . Melee . | . . . . . Projectile . | . . . . . AOE 33 | . . 33 . . Terrain Rammed . | . . . . . Walls Destroyed . | . . . . . Machines Disabled . | . . . . . Actions | -11 -10 -10 -10 -9 --------- Run | Yrd Mat Min Exi Min Total 1802 | 1 956 600 234 11 Wait 76 | . 69 7 . . Move 1577 | . 795 558 224 . Hop . | . . . . . Pick Up 18 | . 10 3 5 . Fast Attach 6 | . 4 2 . . Attach 8 | . 2 3 . 3 Detach 5 | . 3 . 2 . Swap 12 | 1 7 4 . . Drop 13 | . 10 . 3 . Fire 83 | . 52 23 . 8 Melee . | . . . . . Ram . | . . . . . Kick . | . . . . . Crush 4 | . 4 . . . Escape Stasis . | . . . . . Rewire . | . . . . . Trap . | . . . . . Miscellaneous . | . . . . . Route ------- -11/Scrapyard -10/Materials (discovered 5 exits: [*Mat x3] / *Min x2) -10/Mines (discovered 3 exits: [*Mat x2] / *Exi) -10/Exiles -9/Mines History --------- Turn | Location | Event 3 | -11/Scrapyard | Discovered new exit (range 0) 3 | -11/Scrapyard | Entered Materials 188 | -10/Materials | Discovered new exit (range 16) 296 | -10/Materials | Central database locked down 300 | -10/Materials | Build established: Mutant 335 | -10/Materials | Discovered new exit (range 7) 957 | -10/Materials | Discovered new exit (range 16) 1034 | -10/Materials | Repaired Lgt. Treads 1085 | -10/Materials | Repaired Lgt. Treads 1484 | -10/Materials | Discovered new exit (range 6) 1826 | -10/Materials | Discovered new exit (range 15) 1926 | -10/Materials | Entered Mines 1945 | -10/Mines | Met a Derelict bent on vengeance 2085 | -10/Mines | A weapon hastily lodged in a ceiling crevice suddenly fell to the ground 2145 | -10/Mines | Learned Materials terminal intel 2196 | -10/Mines | Discovered new exit (range 5) 2437 | -10/Mines | Assembled infested the area 2454 | -10/Mines | Met a Derelict who couldn't figure out how to use a Trap Extractor 2470 | -10/Mines | Core integrity fell below 50% 2533 | -10/Mines | Destroyed 12 combat bots 2533 | -10/Mines | Lost 3 parts (1p1n1u) 2840 | -10/Mines | Discovered new exit (range 8) 2847 | -10/Mines | Core integrity fell below 20% 2897 | -10/Mines | Deemed a non-threat by the Exiles lab entrance 2897 | -10/Mines | Discovered new exit (range 5) 2903 | -10/Mines | Entered Exiles 2946 | -10/Exiles | Met 8R-AWN 2972 | -10/Exiles | Met EX-HEX 3018 | -10/Exiles | Met EX-BIN 3041 | -10/Exiles | Aligned with FarCom system 3042 | -10/Exiles | Given EX-Vault access code 3081 | -10/Exiles | Opened EX-Vault 3090 | -10/Exiles | Found Potential Leg 3092 | -10/Exiles | Found Potential Leg 3125 | -10/Exiles | Warned to stay clear of 0b10 Research branches 3170 | -10/Exiles | Met EX-DEC 3257 | -10/Exiles | Discovered new exit (range 10) 3269 | -10/Exiles | Left Exiles lab with Potential Leg 3269 | -10/Exiles | Entered Mines 3295 | -9/Mines | Destroyed by S-10 Pest with Light Assault Rifle Last Messages --------------- I'm not complaining though, nope, not me! I get that having only half of the bot ever arrive at its destination is tough on maintenance, and they said there likely wouldn't be any breakthroughs in the near term so they're doing FarCom instead. 03221_ System corrupted: Component data lost. 03228_ Extracted 21 matter. 03229_ Dropped Huge Storage Unit. 03230_ Acquired Hcp. Matter Pod. 03247_ System corrupted: Matter fused (-6). 03257_ EXIT=FOUND LOCATION=UNKNOWN GOAL=ESCAPE 03269_ Receiving FarCom transmissions... 03270_ NTJ|WH:%NHWX#WML/B4H3RIH85M 03271_ S-10 Pest destroyed. 03271_ Switching to secondary target: S-10 Pest. 03280_ Core Extractor disabled. 03280_ Lgt. Treads destroyed. 03289_ S-10 Pest destroyed. 03289_ Switching to secondary target: S-10 Pest. Map ----- +----------------------------------------------------+ | | | | | | | | | | | | | | | | | | | | | | | | | | | | | | | | | | | ?????????????????????????????????????????????????? | | ?????????????????????????????????????????????????? | | ???????????????????#########?????????????????????? | | ???????????????????# #?????????????????????? | | ???????????????????# """ [#?????????????????????? | | ???????????????????# """=%#?????????????????????? | | ???????????????????# " " #?????????????????????? | | ???????????????????# #?????????????????????? | | ???????????????????# =%@ #?????????????????????? | | ???????????????????# * ??????????????????? | | ???????????????????# s #####?????????????????? | | ???????????????????#########?????????????????????? | | ?????????????????????????????????????????????????? | | ?????????????????????????????????????????????????? | | ?????????????????????????????????????????????????? | | ?????????????????????????????????????????????????? | | ?????????????????????????????????????????????????? | | ?????????????????????????????????????????????????? | | ?????????????????????????????????????????????????? | | ?????????????????????????????????????????????????? | | ?????????????????????????????????????????????????? | | ?????????????????????????????????????????????????? | | ?????????????????????????????????????????????????? | | ?????????????????????????????????????????????????? | | ?????????????????????????????????????????????????? | | ?????????????????????????????????????????????????? | | ?????????????????????????????????????????????????? | | ?????????????????????????????????????????????????? | | ?????????????????????????????????????????????????? | | ?????????????????????????????????????????????????? | | ?????????????????????????????????????????????????? | | ?????????????????????????????????????????????????? | | ?????????????????????????????????????????????????? | +----------------------------------------------------+ Best States ------------- Heat Dissipation 39 Energy Generation 10 Energy Capacity 250 Matter Stores 300 Matter Capacity 300 Sight Range 16 Terrain Scan Density 10 Weapon Shielding 66 Evasion (%) 55 Recoil Reduction 2 Item Schematics ----------------- None Robot Schematics ------------------ None Fabricated ------------ Nothing Repaired ---------- Lgt. Treads | 70% | -10/Materials Lgt. Treads | 62% | -10/Materials Alien Tech Used ----------------- None Achievements -------------- None Challenges ------------ None Game ------ Seed TitaniumBiocellGenerator Manual? 0 Play Time 00:16:10 Cumulative 303.7 hours Start 2025.05.30 @ 19:48:55 End 2025.05.30 @ 20:04:51 Sessions 1 Manual Loads 0 Difficulty Rogue Special Mode None Game No. 213 Rogue 213 Adventurer 0 Explorer 0 Win Type - Total 24 Types 18/0/4/2/0/0/0/0/0/0 Lore% 86 Gallery% 73 Achievement% 64 Wizard Run 0 Options --------- Layout 0 ASCII 1 Keyboard 1 Movement Arrows Keybinds 0 Fullscreen 2 Font 18/Terminus Map View 76x50 Zoom Use 0% Tactical HUD 1 Map Filters NONE Filters NONE Steam 1 RUN: 9bf45094-3ac9-4da0-a1f3-8e20c045e0e8